fUSD/lending_fUSD_20260616
["ID","MTS","AMOUNT","RATE_DAILY","PERIOD"]
[425168529,1781549670000,-293.44,0.00038293,120]
[425168533,1781549670000,-500.0,0.00038293,120]
[425168530,1781549670000,-500.0,0.00038293,120]
[425168528,1781549670000,-500.0,0.00038293,120]
[425168538,1781549670000,-516.11,0.00038293,120]
[425168547,1781549670000,-500.0,0.00038293,120]
[425168541,1781549670000,-489.38,0.00038293,120]
[425168539,1781549670000,-500.0,0.00038293,120]
[425168540,1781549670000,-500.0,0.00038293,120]
[425168542,1781549670000,-500.0,0.00038293,120]
[425168543,1781549670000,-500.0,0.00038293,120]
[425168546,1781549670000,-500.0,0.00038293,120]
[425168536,1781549670000,-500.0,0.00038293,120]
[425168578,1781549670000,-500.0,0.00038293,120]
[425168573,1781549670000,-500.0,0.00038293,120]
[425168575,1781549670000,-268.14,0.00038293,120]
[425168607,1781549670000,-500.0,0.00038293,120]
[425168605,1781549670000,-500.0,0.00038293,120]
[425168609,1781549670000,-500.0,0.00038293,120]
[425168612,1781549670000,-500.0,0.00038293,120]
[425168608,1781549670000,-412.54,0.00038293,120]
[425168613,1781549670000,-500.0,0.00038293,120]
[425168610,1781549670000,-500.0,0.00038293,120]
[425168611,1781549670000,-312.74,0.00038293,120]
[425168614,1781549670000,-315.14,0.00038293,120]
[425168615,1781549670000,-500.0,0.00038293,120]
[425168616,1781549670000,-500.0,0.00038293,120]
[425168617,1781549670000,-500.0,0.00038293,120]
[425168624,1781549670000,-500.0,0.00038293,120]
[425168618,1781549670000,-500.0,0.00038293,120]
[425168625,1781549670000,-500.0,0.00038293,120]
[425168622,1781549670000,-257.43,0.00038293,120]
[425168620,1781549670000,-159.48,0.00038293,120]
[425168621,1781549670000,-500.0,0.00038293,120]
[425168623,1781549670000,-500.0,0.00038293,120]
[425168630,1781549670000,-359.8,0.00038293,120]
[425168628,1781549670000,-419.22,0.00038293,120]
[425168629,1781549670000,-500.0,0.00038293,120]
[425168626,1781549670000,-500.0,0.00038293,120]
[425168574,1781549670000,-500.0,0.00038293,120]
[425168627,1781549670000,-500.0,0.00038293,120]
[425168606,1781549670000,-500.0,0.00038293,120]
[425168604,1781549670000,-500.0,0.00038293,120]
[425168619,1781549670000,-648.1,0.00038293,120]
[425168600,1781549670000,-289.85,0.00038293,120]
[425168579,1781549670000,-500.0,0.00038293,120]
[425168602,1781549670000,-537.56,0.00038293,120]
[425168580,1781549670000,-500.0,0.00038293,120]
[425168581,1781549670000,-500.0,0.00038293,120]
[425168576,1781549670000,-529.1,0.00038293,120]
[425168582,1781549670000,-179.43616779,0.00038293,120]
[425168593,1781549670000,-331.68,0.00038293,120]
[425168585,1781549670000,-500.0,0.00038293,120]
[425168583,1781549670000,-500.0,0.00038293,120]
[425168591,1781549670000,-279.21,0.00038293,120]
[425168590,1781549670000,-500.0,0.00038293,120]
[425168586,1781549670000,-500.0,0.00038293,120]
[425168584,1781549670000,-500.0,0.00038293,120]
[425168601,1781549670000,-500.0,0.00038293,120]
[425168603,1781549670000,-252.7,0.00038293,120]
[425168592,1781549670000,-500.0,0.00038293,120]
[425168597,1781549670000,-500.0,0.00038293,120]
[425168596,1781549670000,-524.11,0.00038293,120]
[425168594,1781549670000,-500.0,0.00038293,120]
[425168598,1781549670000,-500.0,0.00038293,120]
[425168595,1781549670000,-598.50200718,0.00038293,120]
[425168587,1781549670000,-500.0,0.00038293,120]
[425168589,1781549670000,-430.4,0.00038293,120]
[425168588,1781549670000,-581.98,0.00038293,120]
[425168599,1781549670000,-500.0,0.00038293,120]
[425168667,1781549671000,-500.0,0.00038293,120]
[425168669,1781549671000,-500.0,0.00038293,120]
[425168670,1781549671000,-500.0,0.00038293,120]
[425168668,1781549671000,-500.0,0.00038293,120]
[425168666,1781549671000,-348.17,0.00038293,120]
[425168671,1781549671000,-500.0,0.00038293,120]
[425168663,1781549671000,-500.0,0.00038293,120]
[425168665,1781549671000,-500.0,0.00038293,120]
[425168662,1781549671000,-500.0,0.00038293,30]
[425168661,1781549671000,-500.0,0.00038293,120]
[425168673,1781549671000,-500.0,0.00038293,120]
[425168664,1781549671000,-164.77,0.00038293,30]
[425168672,1781549671000,-205.29,0.00038293,120]
[425168685,1781549671000,-500.0,0.00038293,120]
[425168675,1781549671000,-500.0,0.00038293,120]
[425168678,1781549671000,-500.0,0.00038293,120]
[425168676,1781549671000,-500.0,0.00038293,120]
[425168679,1781549671000,-492.97,0.00038293,120]
[425168677,1781549671000,-525.21,0.00038293,120]
[425168682,1781549671000,-500.0,0.00038293,120]
[425168681,1781549671000,-383.05,0.00038293,120]
[425168683,1781549671000,-500.0,0.00038293,120]
[425168695,1781549671000,-500.0,0.00038293,120]
[425168680,1781549671000,-500.0,0.00038293,120]
[425168694,1781549671000,-500.0,0.00038293,120]
[425168660,1781549671000,-250.94,0.00038293,120]
[425168674,1781549671000,-508.86,0.00038293,120]
[425168652,1781549671000,-500.0,0.00038293,120]
[425168631,1781549671000,-500.0,0.00038293,120]
[425168650,1781549671000,-500.0,0.00038293,120]
[425168696,1781549671000,-287.09,0.00038293,120]
[425168636,1781549671000,-500.0,0.00038293,120]
[425168635,1781549671000,-500.0,0.00038293,120]
[425168634,1781549671000,-568.13,0.00038293,120]
[425168633,1781549671000,-629.17,0.00038293,120]
[425168632,1781549671000,-345.71,0.00038293,120]
[425168638,1781549671000,-523.52,0.00038293,120]
[425168637,1781549671000,-171.22,0.00038293,120]
[425168640,1781549671000,-500.0,0.00038293,120]
[425168639,1781549671000,-500.0,0.00038293,120]
[425168641,1781549671000,-515.69,0.00038293,120]
[425168645,1781549671000,-500.0,0.00038293,120]
[425168656,1781549671000,-461.38,0.00038293,120]
[425168646,1781549671000,-500.0,0.00038293,120]
[425168643,1781549671000,-500.0,0.00038293,120]
[425168647,1781549671000,-500.0,0.00038293,120]
[425168642,1781549671000,-500.0,0.00038293,120]
[425168649,1781549671000,-500.0,0.00038293,120]
[425168657,1781549671000,-500.0,0.00038293,120]
[425168659,1781549671000,-500.0,0.00038293,120]
[425168658,1781549671000,-500.0,0.00038293,120]
[425168648,1781549671000,-421.71,0.00038293,120]
[425168651,1781549671000,-500.0,0.00038293,120]
[425168653,1781549671000,-500.0,0.00038293,120]
[425168655,1781549671000,-500.0,0.00038293,120]
[425168654,1781549671000,-517.2,0.00038293,120]
[425168644,1781549671000,-500.0,0.00038293,120]
[425168686,1781549671000,-500.0,0.00038293,120]
[425168737,1781549671000,-500.0,0.00038293,90]
[425168688,1781549671000,-500.0,0.00038293,120]
[425168721,1781549671000,-237.19,0.00038293,120]
[425168722,1781549671000,-560.74,0.00038293,120]
[425168726,1781549671000,-575.17,0.00038293,120]
[425168732,1781549671000,-500.0,0.00038293,120]
[425168724,1781549671000,-179.47,0.00038293,120]
[425168725,1781549671000,-500.0,0.00038293,120]
[425168729,1781549671000,-518.31,0.00038293,120]
[425168731,1781549671000,-500.0,0.00038293,120]
[425168730,1781549671000,-500.0,0.00038293,120]
[425168723,1781549671000,-500.0,0.00038293,120]
[425168727,1781549671000,-178.56,0.00038293,120]
[425168728,1781549671000,-296.66,0.00038293,120]
[425168717,1781549671000,-500.0,0.00038293,120]
[425168734,1781549671000,-500.0,0.00038293,120]
[425168743,1781549671000,-503.12,0.00038293,120]
[425168736,1781549671000,-533.74,0.00038293,120]
[425168739,1781549671000,-500.0,0.00038293,120]
[425168741,1781549671000,-500.0,0.00038293,120]
[425168735,1781549671000,-500.0,0.00038293,120]
[425168742,1781549671000,-500.0,0.00038293,120]
[425168738,1781549671000,-222.31,0.00038293,90]
[425168740,1781549671000,-525.91,0.00038293,120]
[425168745,1781549671000,-602.41,0.00038293,120]
[425168744,1781549671000,-500.0,0.00038293,120]
[425168746,1781549671000,-545.5,0.00038293,120]
[425168684,1781549671000,-500.0,0.00038293,120]
[425168733,1781549671000,-515.11,0.00038293,120]
[425168716,1781549671000,-500.000001,0.00038293,120]
[425168747,1781549671000,-503.48987548,0.00038293,120]
[425168719,1781549671000,-500.0,0.00038293,120]
[425168720,1781549671000,-500.0,0.00038293,120]
[425168689,1781549671000,-500.0,0.00038293,120]
[425168690,1781549671000,-500.0,0.00038293,120]
[425168692,1781549671000,-426.35,0.00038293,120]
[425168693,1781549671000,-500.0,0.00038293,120]
[425168691,1781549671000,-500.0,0.00038293,120]
[425168697,1781549671000,-477.24,0.00038293,120]
[425168700,1781549671000,-500.0,0.00038293,120]
[425168701,1781549671000,-500.0,0.00038293,120]
[425168702,1781549671000,-540.12,0.00038293,120]
[425168708,1781549671000,-500.0,0.00038293,120]
[425168707,1781549671000,-178.62,0.00038293,120]
[425168699,1781549671000,-192.5,0.00038293,120]
[425168687,1781549671000,-500.0,0.00038293,120]
[425168703,1781549671000,-500.0,0.00038293,120]
[425168698,1781549671000,-500.0,0.00038293,120]
[425168718,1781549671000,-500.0,0.00038293,120]
[425168715,1781549671000,-496.91859581,0.00038293,120]
[425168714,1781549671000,-258.65,0.00038293,120]
[425168710,1781549671000,-500.0,0.00038293,120]
[425168713,1781549671000,-638.36,0.00038293,120]
[425168711,1781549671000,-569.66,0.00038293,120]
[425168705,1781549671000,-571.46,0.00038293,120]
[425168704,1781549671000,-500.0,0.00038293,120]
[425168706,1781549671000,-500.0,0.00038293,120]
[425168709,1781549671000,-500.0,0.00038293,120]
[425168712,1781549671000,-500.0,0.00038293,120]
[425168787,1781549672000,-500.0,0.00038293,120]
[425168786,1781549672000,-500.0,0.00038293,120]
[425168783,1781549672000,-487.93,0.00038293,10]
[425168785,1781549672000,-500.0,0.00038293,120]
[425168771,1781549672000,-500.0,0.00038293,120]
[425168780,1781549672000,-503.63,0.00038293,120]
[425168781,1781549672000,-500.0,0.00038293,120]
[425168778,1781549672000,-500.0,0.00038293,120]
[425168779,1781549672000,-523.56,0.00038293,120]
[425168782,1781549672000,-500.0,0.00038293,10]
[425168788,1781549672000,-500.0,0.00038293,120]
[425168794,1781549672000,-500.0,0.00038293,120]
[425168790,1781549672000,-500.0,0.00038293,120]
[425168789,1781549672000,-500.0,0.00038293,120]
[425168791,1781549672000,-500.0,0.00038293,120]
[425168793,1781549672000,-500.0,0.00038293,120]
[425168792,1781549672000,-175.91,0.00038293,120]
[425168796,1781549672000,-506.23,0.00038293,120]
[425168798,1781549672000,-500.0,0.00038293,120]
[425168799,1781549672000,-500.0,0.00038293,120]
[425168797,1781549672000,-516.16,0.00038293,120]
[425168795,1781549672000,-289.21,0.00038293,120]
[425168800,1781549672000,-570.94,0.00038293,120]
[425168773,1781549672000,-495.65,0.00038293,120]
[425168784,1781549672000,-500.0,0.00038293,120]
[425168772,1781549672000,-500.0,0.00038293,120]
[425168762,1781549672000,-500.0,0.00038293,120]
[425168770,1781549672000,-500.0,0.00038293,120]
[425168801,1781549672000,-500.0,0.00038293,120]
[425168751,1781549672000,-277.97,0.00038293,120]
[425168749,1781549672000,-500.0,0.00038293,120]
[425168754,1781549672000,-500.0,0.00038293,120]
[425168748,1781549672000,-500.0,0.00038293,120]
[425168750,1781549672000,-500.0,0.00038293,120]
[425168753,1781549672000,-500.0,0.00038293,120]
[425168752,1781549672000,-531.55,0.00038293,120]
[425168756,1781549672000,-500.0,0.00038293,120]
[425168755,1781549672000,-500.0,0.00038293,120]
[425168761,1781549672000,-500.0,0.00038293,120]
[425168763,1781549672000,-540.71,0.00038293,120]
[425168760,1781549672000,-645.65,0.00038293,120]
[425168757,1781549672000,-412.82,0.00038293,120]
[425168765,1781549672000,-500.0,0.00038293,120]
[425168758,1781549672000,-649.0,0.00038293,120]
[425168759,1781549672000,-537.41,0.00038293,120]
[425168764,1781549672000,-500.0,0.00038293,120]
[425168766,1781549672000,-588.13,0.00038293,120]
[425168769,1781549672000,-538.92,0.00038293,120]
[425168767,1781549672000,-500.0,0.00038293,120]
[425168777,1781549672000,-500.0,0.00038293,120]
[425168776,1781549672000,-600.07,0.00038293,120]
[425168775,1781549672000,-500.0,0.00038293,120]
[425168768,1781549672000,-636.28,0.00038293,120]
[425168774,1781549672000,-500.0,0.00038293,120]
[425168805,1781549672000,-568.61,0.00038293,120]
[425168829,1781549672000,-360.14394158,0.00038293,120]
[425168802,1781549672000,-560.4,0.00038293,120]
[425168834,1781549672000,-500.0,0.00038293,120]
[425168835,1781549672000,-500.0,0.00038293,120]
[425168837,1781549672000,-185.74,0.00038293,120]
[425168838,1781549672000,-500.0,0.00038293,120]
[425168836,1781549672000,-500.0,0.00038293,120]
[425168839,1781549672000,-202.92,0.00038293,120]
[425168841,1781549672000,-500.0,0.00038293,120]
[425168842,1781549672000,-500.0,0.00038293,120]
[425168840,1781549672000,-552.94,0.00038293,120]
[425168843,1781549672000,-500.0,0.00038293,120]
[425168848,1781549672000,-287.18,0.00038293,120]
[425168849,1781549672000,-584.87,0.00038293,120]
[425168847,1781549672000,-500.0,0.00038293,120]
[425168846,1781549672000,-267.91,0.00038293,120]
[425168850,1781549672000,-500.0,0.00038293,120]
[425168852,1781549672000,-500.0,0.00038293,120]
[425168845,1781549672000,-500.0,0.00038293,120]
[425168853,1781549672000,-500.0,0.00038293,120]
[425168844,1781549672000,-559.93,0.00038293,120]
[425168854,1781549672000,-500.0,0.00038293,120]
[425168855,1781549672000,-500.0,0.00038293,120]
[425168857,1781549672000,-500.0,0.00038293,120]
[425168858,1781549672000,-223.45,0.00038293,120]
[425168856,1781549672000,-500.0,0.00038293,120]
[425168803,1781549672000,-559.98,0.00038293,120]
[425168832,1781549672000,-230.92,0.00038293,120]
[425168833,1781549672000,-500.0,0.00038293,120]
[425168851,1781549672000,-181.29,0.00038293,120]
[425168821,1781549672000,-500.0,0.00038293,120]
[425168859,1781549672000,-617.31,0.00038293,120]
[425168809,1781549672000,-235.69,0.00038293,120]
[425168807,1781549672000,-500.0,0.00038293,120]
[425168806,1781549672000,-500.0,0.00038293,120]
[425168808,1781549672000,-500.0,0.00038293,120]
[425168804,1781549672000,-500.0,0.00038293,120]
[425168813,1781549672000,-255.57,0.00038293,120]
[425168817,1781549672000,-542.97,0.00038293,120]
[425168816,1781549672000,-341.19,0.00038293,120]
[425168814,1781549672000,-500.0,0.00038293,120]
[425168815,1781549672000,-500.0,0.00038293,120]
[425168812,1781549672000,-500.0,0.00038293,120]
[425168811,1781549672000,-500.0,0.00038293,120]
[425168820,1781549672000,-500.0,0.00038293,120]
[425168826,1781549672000,-500.0,0.00038293,120]
[425168810,1781549672000,-500.0,0.00038293,120]
[425168828,1781549672000,-201.07,0.00038293,120]
[425168827,1781549672000,-563.21,0.00038293,120]
[425168825,1781549672000,-500.0,0.00038293,120]
[425168831,1781549672000,-500.0,0.00038293,120]
[425168830,1781549672000,-500.0,0.00038293,120]
[425168823,1781549672000,-284.22,0.00038293,120]
[425168822,1781549672000,-500.0,0.00038293,120]
[425168824,1781549672000,-622.55,0.00038293,120]
[425168818,1781549672000,-500.0,0.00038293,120]
[425168819,1781549672000,-500.0,0.00038293,120]
[425168882,1781549673000,-500.0,0.00038293,120]
[425168891,1781549673000,-614.1,0.00038293,120]
[425168875,1781549673000,-526.37,0.00038293,120]
[425168880,1781549673000,-500.0,0.00038293,120]
[425168883,1781549673000,-214.13,0.00038293,120]
[425168881,1781549673000,-500.0,0.00038293,120]
[425168884,1781549673000,-500.0,0.00038293,120]
[425168888,1781549673000,-383.07,0.00038293,120]
[425168887,1781549673000,-274.03,0.00038293,120]
[425168886,1781549673000,-500.0,0.00038293,120]
[425168890,1781549673000,-159.7,0.00038293,120]
[425168889,1781549673000,-500.0,0.00038293,120]
[425168877,1781549673000,-500.0,0.00038293,120]
[425168892,1781549673000,-500.0,0.00038293,120]
[425168885,1781549673000,-500.0,0.00038293,120]
[425168878,1781549673000,-500.0,0.00038293,120]
[425168862,1781549673000,-500.0,0.00038293,120]
[425168873,1781549673000,-500.0,0.00038293,120]
[425168894,1781549673000,-500.0,0.00038293,120]
[425168867,1781549673000,-500.0,0.00038293,120]
[425168861,1781549673000,-500.0,0.00038293,120]
[425168860,1781549673000,-500.0,0.00038293,120]
[425168866,1781549673000,-500.0,0.00038293,120]
[425168864,1781549673000,-500.0,0.00038293,120]
[425168865,1781549673000,-500.0,0.00038293,120]
[425168863,1781549673000,-500.0,0.00038293,120]
[425168868,1781549673000,-470.52,0.00038293,120]
[425168876,1781549673000,-599.38,0.00038293,120]
[425168869,1781549673000,-500.0,0.00038293,120]
[425168872,1781549673000,-500.0,0.00038293,120]
[425168879,1781549673000,-258.82,0.00038293,120]
[425168870,1781549673000,-500.0,0.00038293,120]
[425168871,1781549673000,-611.57,0.00038293,120]
[425168874,1781549673000,-500.0,0.00038293,120]
[425168895,1781549673000,-288.07,0.00038293,120]
[425168903,1781549673000,-500.0,0.00038293,120]
[425168893,1781549673000,-500.0,0.00038293,120]
[425168916,1781549673000,-264.56205847,0.00038293,120]
[425168917,1781549673000,-500.0,0.00038293,120]
[425168919,1781549673000,-561.11,0.00038293,120]
[425168921,1781549673000,-500.0,0.00038293,120]
[425168923,1781549673000,-549.94,0.00038293,120]
[425168920,1781549673000,-500.0,0.00038293,120]
[425168924,1781549673000,-500.0,0.00038293,120]
[425168926,1781549673000,-500.0,0.00038293,120]
[425168925,1781549673000,-500.0,0.00038293,120]
[425168918,1781549673000,-500.0,0.00038293,120]
[425168928,1781549673000,-500.0,0.00038293,120]
[425168927,1781549673000,-500.0,0.00038293,120]
[425168929,1781549673000,-500.0,0.00038293,120]
[425168930,1781549673000,-500.0,0.00038293,120]
[425168896,1781549673000,-500.0,0.00038293,120]
[425168913,1781549673000,-500.0,0.00038293,120]
[425168914,1781549673000,-500.0,0.00038293,120]
[425168922,1781549673000,-500.0,0.00038293,120]
[425168911,1781549673000,-500.0,0.00038293,120]
[425168897,1781549673000,-620.51,0.00038293,120]
[425168910,1781549673000,-500.0,0.00038293,120]
[425168898,1781549673000,-500.0,0.00038293,120]
[425168902,1781549673000,-500.0,0.00038293,120]
[425168899,1781549673000,-500.0,0.00038293,120]
[425168901,1781549673000,-500.0,0.00038293,120]
[425168905,1781549673000,-500.0,0.00038293,120]
[425168900,1781549673000,-500.0,0.00038293,120]
[425168915,1781549673000,-422.21,0.00038293,120]
[425168904,1781549673000,-500.0,0.00038293,120]
[425168908,1781549673000,-181.72,0.00038293,120]
[425168906,1781549673000,-500.0,0.00038293,120]
[425168907,1781549673000,-500.0,0.00038293,120]
[425168909,1781549673000,-429.81,0.00038293,120]
[425168912,1781549673000,-500.0,0.00038293,120]
[425168960,1781549674000,-500.0,0.00038293,120]
[425168955,1781549674000,-500.0,0.00038293,120]
[425168954,1781549674000,-562.99,0.00038293,120]
[425168959,1781549674000,-500.0,0.00038293,120]
[425168957,1781549674000,-419.65,0.00038293,120]
[425168966,1781549674000,-378.41,0.00038293,120]
[425168958,1781549674000,-500.0,0.00038293,120]
[425168953,1781549674000,-500.0,0.00038293,120]
[425168961,1781549674000,-500.0,0.00038293,120]
[425168974,1781549674000,-171.49,0.00038293,120]
[425168962,1781549674000,-500.0,0.00038293,120]
[425168963,1781549674000,-316.74,0.00038293,120]
[425168964,1781549674000,-500.0,0.00038293,120]
[425168967,1781549674000,-500.0,0.00038293,120]
[425168973,1781549674000,-500.0,0.00038293,120]
[425168969,1781549674000,-500.0,0.00038293,120]
[425168971,1781549674000,-500.0,0.00038293,120]
[425168975,1781549674000,-500.0,0.00038293,120]
[425168956,1781549674000,-500.0,0.00038293,120]
[425168965,1781549674000,-500.0,0.00038293,120]
[425168951,1781549674000,-500.0,0.00038293,120]
[425168935,1781549674000,-500.0,0.00038293,120]
[425168949,1781549674000,-643.03462595,0.00038293,120]
[425168976,1781549674000,-304.14,0.00038293,120]
[425168931,1781549674000,-500.0,0.00038293,120]
[425168932,1781549674000,-500.0,0.00038293,120]
[425168934,1781549674000,-500.0,0.00038293,120]
[425168936,1781549674000,-500.0,0.00038293,120]
[425168933,1781549674000,-429.52,0.00038293,120]
[425168938,1781549674000,-334.89227053,0.00038293,120]
[425168937,1781549674000,-500.0,0.00038293,120]
[425168939,1781549674000,-583.88,0.00038293,120]
[425168940,1781549674000,-632.32,0.00038293,120]
[425168942,1781549674000,-500.0,0.00038293,120]
[425168941,1781549674000,-500.0,0.00038293,120]
[425168943,1781549674000,-645.33,0.00038293,120]
[425168944,1781549674000,-500.0,0.00038293,120]
[425168946,1781549674000,-500.0,0.00038293,120]
[425168945,1781549674000,-500.0,0.00038293,120]
[425168948,1781549674000,-500.0,0.00038293,120]
[425168947,1781549674000,-500.0,0.00038293,120]
[425168950,1781549674000,-500.0,0.00038293,120]
[425168952,1781549674000,-552.46,0.00038293,120]
[425168968,1781549674000,-312.02,0.00038293,120]
[425169018,1781549674000,-500.0,0.00038293,120]
[425168970,1781549674000,-500.0,0.00038293,120]
[425169003,1781549674000,-500.0,0.00038293,120]
[425169002,1781549674000,-599.34,0.00038293,120]
[425169005,1781549674000,-500.0,0.00038293,120]
[425169000,1781549674000,-533.06,0.00038293,120]
[425169006,1781549674000,-500.0,0.00038293,120]
[425169001,1781549674000,-500.0,0.00038293,120]
[425169007,1781549674000,-500.0,0.00038293,60]
[425169010,1781549674000,-524.19,0.00038293,120]
[425169011,1781549674000,-500.0,0.00038293,120]
[425169020,1781549674000,-500.0,0.00038293,120]
[425169017,1781549674000,-500.0,0.00038293,120]
[425169012,1781549674000,-500.0,0.00038293,120]
[425169015,1781549674000,-201.05,0.00038293,120]
[425169016,1781549674000,-500.0,0.00038293,120]
[425169013,1781549674000,-500.0,0.00038293,120]
[425169009,1781549674000,-500.0,0.00038293,120]
[425169019,1781549674000,-500.0,0.00038293,120]
[425169014,1781549674000,-500.0,0.00038293,120]
[425168972,1781549674000,-178.81,0.00038293,120]
[425169004,1781549674000,-500.0,0.00038293,120]
[425168998,1781549674000,-500.0,0.00038293,30]
[425169008,1781549674000,-500.0,0.00038293,120]
[425168992,1781549674000,-500.0,0.00038293,120]
[425168978,1781549674000,-500.0,0.00038293,120]
[425168987,1781549674000,-535.4,0.00038293,120]
[425168979,1781549674000,-224.35,0.00038293,120]
[425168977,1781549674000,-574.78,0.00038293,120]
[425168981,1781549674000,-523.92,0.00038293,120]
[425168999,1781549674000,-500.0,0.00038293,120]
[425168983,1781549674000,-500.0,0.00038293,120]
[425168982,1781549674000,-500.0,0.00038293,120]
[425168984,1781549674000,-507.33,0.00038293,120]
[425168985,1781549674000,-500.0,0.00038293,120]
[425168980,1781549674000,-500.0,0.00038293,120]
[425168988,1781549674000,-500.0,0.00038293,120]
[425168994,1781549674000,-500.0,0.00038293,120]
[425168995,1781549674000,-253.7,0.00038293,120]
[425168996,1781549674000,-646.22629285,0.00038293,120]
[425168997,1781549674000,-500.0,0.00038293,120]
[425168989,1781549674000,-500.0,0.00038293,120]
[425168990,1781549674000,-500.0,0.00038293,120]
[425168993,1781549674000,-324.89,0.00038293,120]
[425168986,1781549674000,-500.0,0.00038293,120]
[425168991,1781549674000,-428.44,0.00038293,120]
[425169059,1781549675000,-500.0,0.00038293,120]
[425169058,1781549675000,-500.0,0.00038293,120]
[425169057,1781549675000,-411.59,0.00038293,120]
[425169056,1781549675000,-500.0,0.00038293,120]
[425169047,1781549675000,-619.65,0.00038293,120]
[425169054,1781549675000,-544.01132387,0.00038293,120]
[425169053,1781549675000,-500.0,0.00038293,120]
[425169048,1781549675000,-500.0,0.00038293,120]
[425169060,1781549675000,-500.0,0.00038293,120]
[425169055,1781549675000,-500.0,0.00038293,120]
[425169061,1781549675000,-500.0,0.00038293,120]
[425169074,1781549675000,-265.89,0.00038293,120]
[425169063,1781549675000,-500.0,0.00038293,120]
[425169064,1781549675000,-500.0,0.00038293,120]
[425169065,1781549675000,-287.79,0.00038293,120]
[425169066,1781549675000,-500.0,0.00038293,120]
[425169067,1781549675000,-500.0,0.00038293,120]
[425169068,1781549675000,-500.0,0.00038293,120]
[425169069,1781549675000,-500.0,0.00038293,120]
[425169070,1781549675000,-500.0,0.00038293,120]
[425169071,1781549675000,-230.77,0.00038293,120]
[425169072,1781549675000,-500.0,0.00038293,120]
[425169075,1781549675000,-500.0,0.00038293,120]
[425169046,1781549675000,-500.0,0.00038293,120]
[425169062,1781549675000,-612.61,0.00038293,120]
[425169042,1781549675000,-500.0,0.00038293,120]
[425169024,1781549675000,-500.0,0.00038293,120]
[425169045,1781549675000,-500.0,0.00038293,120]
[425169073,1781549675000,-500.0,0.00038293,120]
[425169021,1781549675000,-353.29,0.00038293,120]
[425169025,1781549675000,-500.0,0.00038293,120]
[425169026,1781549675000,-500.0,0.00038293,120]
[425169023,1781549675000,-500.0,0.00038293,120]
[425169022,1781549675000,-500.0,0.00038293,120]
[425169030,1781549675000,-500.0,0.00038293,120]
[425169029,1781549675000,-535.34,0.00038293,120]
[425169027,1781549675000,-299.41,0.00038293,120]
[425169028,1781549675000,-500.0,0.00038293,120]
[425169031,1781549675000,-500.0,0.00038293,120]
[425169033,1781549675000,-304.3,0.00038293,120]